Cogmind - Beta 13 @@@ ROGUE MODE // 2024.07.28 @ 16:37:58 Player: Tereza Result: Destroyed by G-47 Trooper with Particle Gun Performance ------------- Evolutions (2) 1000 Regions Visited (3) 600 Robots Destroyed (31) 155 Value Destroyed (679) 679 Prototype IDs (0) 0 Alien Tech Used (0) 0 Bonus (0) 0 TOTAL SCORE: 2434 Bonus ------- None Cogmind --------- Core Integrity 0/550 Matter 223/300 Energy 28/100 System Corruption 0% Temperature Cool (9) Movement Core (50) Location -8/Materials Parts ------- > --- POWER (1) -------- (None) > --- PROPULSION (4) --- (None) > --- UTILITY (4) ------ Signal Interpreter Hacking Suite > --- WEAPON (2) ------- (None) > --- INVENTORY (5) ---- Ion Engine Aluminum Leg Aluminum Leg Small Storage Unit Mining Claw Peak State ------------ > --- POWER ------------ Improved Ion Engine > --- PROPULSION ------- Improved Treads Advanced Treads Improved Hover Unit Improved Hover Unit > --- UTILITY ---------- Small Storage Unit Signal Interpreter Medium Armor Plating Hacking Suite > --- WEAPON ----------- Beam Rifle Light Assault Rifle > --- INVENTORY -------- Ion Engine Aluminum Leg Aluminum Leg Hacking Suite Light Assault Rifle Mini Grenade Launcher Mining Claw [Rating: 22] Favorites ----------- Power Light Ion Engine Engine Light Ion Engine Propulsion Light Treads Treads Light Treads Leg Aluminum Leg Hover Unit Improved Hover Unit Utility Small Storage Unit Storage Small Storage Unit Processor Signal Interpreter Hackware Hacking Suite Protection Medium Armor Plating Weapon Assault Rifle Energy Gun Beam Rifle Energy Cannon EM Pulse Cannon Ballistic Gun Assault Rifle Launcher Mini Grenade Launcher Build | -11 -10 -9 -8 ------- Run | Yrd Mat Mat Mat Slots Evolved 4 | . . 2 2 Power . | . . . . Propulsion 2 | . . . 2 Utility 2 | . . 2 . Weapon . | . . . . Parts Attached 26 | 6 1 7 12 Power 2 | 1 . 1 . Engine 2 | 1 . 1 . Core . | . . . . Reactor . | . . . . Propulsion 9 | 2 . 2 5 Treads 4 | 2 . . 2 Leg 2 | . . . 2 Wheel . | . . . . Hover 3 | . . 2 1 Flight . | . . . . Utility 6 | 1 1 2 2 Device . | . . . . Storage 1 | 1 . . . Processor 2 | . . 1 1 Hackware 2 | . 1 . 1 Protection 1 | . . 1 . Artifact . | . . . . Weapon 9 | 2 . 2 5 Energy Gun 3 | . . 1 2 Energy Cannon 1 | . . . 1 Ballistic Gun 4 | 2 . 1 1 Ballistic Cannon . | . . . . Launcher 1 | . . . 1 Special Weapon . | . . . . Impact Weapon . | . . . . Slashing Weapon . | . . . . Piercing Weapon . | . . . . Special Melee Weapon . | . . . . Unidentified Prototypes . | . . . . Parts Lost 16 | . . 1 15 Power 1 | . . . 1 Propulsion 5 | . . 1 4 Utility 3 | . . . 3 Weapon 7 | . . . 7 Highest Loss Streak 15 | . . 1 15 To Critical Strikes . | . . . . Average Slot Usage (%) 86 | . 88 92 69 Engine 10 | . 14 11 3 Treads 21 | . 28 20 9 Hover 1 | . . 1 8 Storage 11 | . 14 11 8 Processor 7 | . . 11 14 Hackware 6 | . 2 11 3 Protection 2 | . . 4 2 Energy Gun 1 | . . 1 4 Ballistic Gun 21 | . 28 20 9 Naked Turns . | . . . . Heaviest Build 23 | 12 12 23 23 Greatest Support 45 | 40 40 40 45 Greatest Overweight (x) 3 | . . 3 2 Average Overweight (x) . | . . . . Largest Inventory Capacity 8 | 8 8 8 8 Average Capacity 7 | 7 8 8 7 Most Carried 8 | 6 8 8 8 Average Carried 7 | 4 7 7 5 Final Capacity 8 | 8 8 8 5 Final Carried 8 | 6 8 8 5 Class Distribution -------------------- 100% | Mutant Dominant Class ---------------- Mutant | -10/Materials Mutant | -9/Materials Mutant | -8/Materials Resources | -11 -10 -9 -8 ----------- Run | Yrd Mat Mat Mat Matter Collected 741 | 260 138 238 105 Remotely . | . . . . Salvage Created 713 | . 209 252 252 Parts 55 | . 15 21 19 Haulers Intercepted . | . . . . Recyclers Shooed . | . . . . Parts Field Recycled . | . . . . Retrieved Matter . | . . . . Parts Self-Destructed . | . . . . Prevented . | . . . . Kills | -11 -10 -9 -8 ------- Run | Yrd Mat Mat Mat Combat Hostiles Destroyed 28 | . 9 10 9 Guns 24 | . 9 10 5 AOE 4 | . . . 4 Classes Destroyed 5 | . 3 1 1 Worker 1 | . . 1 . Operator 2 | . 1 1 . Swarmer 16 | . 6 7 3 Grunt 11 | . 3 3 5 Duelist 1 | . . . 1 Best Kill Streak 6 | . 3 6 5 Combat Bots Only 5 | . 3 4 5 Max Kills in Single Turn 2 | . 1 1 2 Gunslinging . | . . . . Exploded 2 | . . . 2 Melee . | . . . . Uniques/NPCs Destroyed . | . . . . Combat | -11 -10 -9 -8 -------- Run | Yrd Mat Mat Mat Hostile Shots Fired 268 | . 32 87 149 Missed 79 | . 11 25 43 Damage Taken 2410 | . 189 582 1639 Core 692 | . 22 113 557 Absorbed by Shields . | . . . . Core Remaining (%) 87 | 100 91 71 . Volleys Fired 104 | . 34 38 32 Largest 2 | . 2 2 2 Hottest 95 | . 40 76 95 Shots Fired 204 | . 68 76 60 Gun 199 | . 68 76 55 Cannon 1 | . . . 1 Launcher 4 | . . . 4 Special . | . . . . Kinetic 172 | . 68 62 42 Thermal 27 | . . 14 13 Explosive 4 | . . . 4 Electromagnetic 1 | . . . 1 Robot Hit Streak 12 | . 8 10 12 Robot Miss Streak 6 | . 6 4 4 Penetration Max . | . . . . Secondary Targets 5 | . 2 3 . Max Gunslinging Chain 1 | . 1 1 . Shots Hit Robots 120 | . 30 47 43 Core Hits 54 | . 13 17 24 Critical Kills 1 | . 1 . . Critical Parts Destroyed . | . . . . Critical Strikes 2 | . 1 1 . Burn 1 | . . 1 . Destroy 1 | . 1 . . Melee Attacks . | . . . . Impact . | . . . . Slashing . | . . . . Piercing . | . . . . Sneak Attacks . | . . . . Combat Hostiles . | . . . . Follow-up Attacks . | . . . . Damage Inflicted 1976 | . 405 582 989 Guns 1381 | . 405 582 394 Cannons 27 | . . . 27 Explosions 566 | . . . 566 Melee . | . . . . Ramming 2 | . . . 2 Kinetic 1104 | . 405 436 263 Thermal 277 | . . 146 131 Explosive 566 | . . . 566 Electromagnetic 27 | . . . 27 Impact . | . . . . Slashing . | . . . . Piercing . | . . . . Highest Corruption . | . . . . Average Corruption . | . . . . Corruption Purged . | . . . . Corruption Blocked . | . . . . Overload Shots . | . . . . Overflow Damage 5 | . . . 5 Projectiles . | . . . . Explosions 5 | . . . 5 Melee . | . . . . Knockbacks . | . . . . Impact . | . . . . Kinetic . | . . . . Secondary . | . . . . Self-Inflicted Damage 147 | . . . 147 Shots 4 | . . . 4 Rammed 1 | . . . 1 Targets Rammed 1 | . . . 1 Kicked . | . . . . Crushed . | . . . . Highest Temperature 266 | . . 266 128 Average Temperature 77 | . . 101 51 Received Heat Transfer 996 | . 42 135 819 Siege Activations . | . . . . Robots Corrupted . | . . . . Combat Hostiles . | . . . . Parts Fried . | . . . . Impact Corruptions . | . . . . Robots Melted . | . . . . Combat Hostiles . | . . . . Parts Melted 1 | . . 1 . Heat Transferred 777 | . . 444 333 Parts Sabotaged . | . . . . Parts Stolen . | . . . . Parts Stripped . | . . . . Power Chain Reactions . | . . . . Alert | -11 -10 -9 -8 ------- Run | Yrd Mat Mat Mat Peak Influence 293 | . 293 239 236 Initial 60 | . . 39 60 Average 112 | . 131 109 129 Maximum Alert Level 1 | . 1 1 1 Low Security (%) 77 | 100 68 81 76 Level 1 22 | . 31 18 23 Level 2 . | . . . . Level 3 . | . . . . Level 4 . | . . . . Level 5 . | . . . . High Security . | . . . . Max Security . | . . . . Squads Dispatched 7 | . 2 2 3 Investigation 1 | . . 1 . Extermination . | . . . . Reinforcement 5 | . 2 1 2 Assault . | . . . . Garrison 1 | . . . 1 Intercept . | . . . . Searches Triggered . | . . . . Construction Impeded 1 | . . . 1 Haulers Reinforced . | . . . . Active Scanning Responses . | . . . . Cargo Convoy Interrupts . | . . . . Stealth | -11 -10 -9 -8 --------- Run | Yrd Mat Mat Mat Distress Signals 4 | . 2 1 1 Communications Jammed . | . . . . Distress Signals . | . . . . Times Spotted 62 | . 20 19 23 Peak Tracking Total 11 | . 4 5 11 Tactical Retreats 4 | . 1 2 1 Traps | -11 -10 -9 -8 ------- Run | Yrd Mat Mat Mat Traps Triggered 1 | . . 1 . Indirectly . | . . . . Trap Hack Attempts . | . . . . Triggered . | . . . . Disarmed . | . . . . Reprogrammed . | . . . . Reused . | . . . . Traps Extracted . | . . . . Installed . | . . . . Triggered . | . . . . Machines | -11 -10 -9 -8 ---------- Run | Yrd Mat Mat Mat Machines Disabled . | . . . . Max in Single Turn . | . . . . Garrison Access 1 | . . . 1 Machines Repaired . | . . . . Machines Dismantled . | . . . . Machines Sabotaged . | . . . . Overloaded Fab Kills . | . . . . Hacking | -11 -10 -9 -8 --------- Run | Yrd Mat Mat Mat Machines Accessed 5 | . 2 2 1 Terminals 4 | . 2 2 . Fabricators . | . . . . Repair Stations . | . . . . Recycling Units . | . . . . Scanalyzers . | . . . . Garrison Access 1 | . . . 1 Total Hacks 9 | . 4 4 1 Successful 5 | . 2 2 1 Failed 4 | . 2 2 . Catastrophic 1 | . 1 . . Database Lockouts . | . . . . Manual 1 | . . 1 . Terminals 8 | . 4 4 . Fabricators . | . . . . Repair Stations . | . . . . Recycling Units . | . . . . Scanalyzers . | . . . . Garrison Access 1 | . . . 1 Terminal Hacks 4 | . 2 2 . Robot Analysis 1 | . . 1 . Alert Level 2 | . 1 1 . Patrol Status 1 | . 1 . . Fabricator Hacks . | . . . . Repair Station Hacks . | . . . . Recycling Unit Hacks . | . . . . Scanalyzer . | . . . . Garrison Access Hacks 1 | . . . 1 Seal Access 1 | . . . 1 Unauthorized Hacks . | . . . . Terminals . | . . . . Fabricators . | . . . . Repair Stations . | . . . . Recycling Units . | . . . . Scanalyzers . | . . . . Garrison Access . | . . . . Data Cores Recovered . | . . . . Used . | . . . . Hacking Detections 3 | . 2 1 . Full Trace Events . | . . . . Feedback Events . | . . . . Feedback Blocked . | . . . . Robot Schematics Acquired . | . . . . Robots Built . | . . . . Authchips . | . . . . Time . | . . . . Total Robot Build Rating . | . . . . Part Schematics Acquired . | . . . . Parts Built . | . . . . Authchips . | . . . . Time . | . . . . Total Part Build Rating . | . . . . Parts Repaired . | . . . . Time . | . . . . Parts Recycled . | . . . . Recycled Matter . | . . . . Retrieved Matter . | . . . . Retrieved Components . | . . . . Parts Scanalyzed . | . . . . Part Schematics Acquired . | . . . . Parts Damaged . | . . . . Bothacking | -11 -10 -9 -8 ------------ Run | Yrd Mat Mat Mat Used RIF Installer . | . . . . Robots Hacked . | . . . . Non-combat . | . . . . Combat . | . . . . Robot Hacks Applied . | . . . . Relay Couplers Released . | . . . . Fabnet Peak Effective % . | . . . . Robots Rewired . | . . . . Allies Hacked . | . . . . Hacks Repelled . | . . . . Allies | -11 -10 -9 -8 -------- Run | Yrd Mat Mat Mat Total Allies . | . . . . Largest Group . | . . . . Highest-Rated Group . | . . . . Highest-Rated Ally . | . . . . Total Orders . | . . . . Ally Attacks . | . . . . Total Damage . | . . . . Kills . | . . . . Allies Corrupted . | . . . . Allies Melted . | . . . . Intel | -11 -10 -9 -8 ------- Run | Yrd Mat Mat Mat Robot Analysis Total 1 | . . 1 . Derelict Logs Recovered . | . . . . Drone Launches . | . . . . Drone Recoveries . | . . . . Exploration | -11 -10 -9 -8 ------------- Run | Yrd Mat Mat Mat Turns Passed 1230 | 88 445 507 190 Spaces Moved 522 | 49 210 202 61 Core 13 | 4 . . 9 Treads 474 | 45 210 190 29 Legs 17 | . . . 17 Wheels . | . . . . Hover 18 | . . 12 6 Flight . | . . . . Fastest Speed 50 | 50 160 116 50 Average Speed 156 | 151 160 162 129 Slowest Speed 260 | 160 160 260 160 Overloaded Moves . | . . . . Propulsion Burnouts . | . . . . Robots Hopped . | . . . . Cave-ins Triggered . | . . . . Exploration Rate (%) 21 | 5 44 23 12 Regions Visited 3 Branch Regions . Pre-discovered Areas . | . . . . Known Exits Taken 1 | . . 1 . Unknown Exits Taken 2 | 1 1 . . Scrap Searched . | . . . . Spaces Dug . | . . . . Terrain Destroyed 26 | . . . 26 Melee . | . . . . Projectile . | . . . . AOE 26 | . . . 26 Terrain Rammed . | . . . . Walls Destroyed . | . . . . Machines Disabled . | . . . . Actions | -11 -10 -9 -8 --------- Run | Yrd Mat Mat Mat Total 739 | 60 252 308 119 Wait 62 | . 2 53 7 Move 519 | 48 209 201 61 Hop . | . . . . Pick Up 15 | 6 4 3 2 Fast Attach 15 | 6 1 4 4 Attach 9 | . . 1 8 Detach 3 | . . . 3 Swap 2 | . . 2 . Drop 9 | . 2 6 1 Fire 104 | . 34 38 32 Melee . | . . . . Ram . | . . . . Kick . | . . . . Crush 1 | . . . 1 Escape Stasis . | . . . . Rewire . | . . . . Trap . | . . . . Miscellaneous . | . . . . Route ------- -11/Scrapyard -10/Materials -9/Materials -8/Materials History --------- Turn | Location | Event 14 | -11/Scrapyard | Discovered new exit (range 15) 89 | -11/Scrapyard | Entered Materials 331 | -10/Materials | Build established: Mutant 509 | -10/Materials | Discovered new exit (range 8) 534 | -10/Materials | Entered another Materials area 534 | -9/Materials | Evolved 2 slots: Utility x2 936 | -9/Materials | Discovered new exit (range 6) 1040 | -9/Materials | Identified exit to Materials 1041 | -9/Materials | Entered another Materials area 1041 | -8/Materials | Evolved 2 slots: Propulsion x2 1168 | -8/Materials | Garrison activated, responded to threat 1182 | -8/Materials | Core integrity fell below 50% 1224 | -8/Materials | Core integrity fell below 20% 1231 | -8/Materials | Destroyed by G-47 Trooper with Particle Gun Last Messages --------------- U-05 Engineer builds a Wall. U-05 Engineer lays Concrete. ALERT: Construction progress impeded, dispatching reinforcements to local area. Acquired Particle Gun. U-05 Engineer lays Concrete. Particle Gun destroyed. U-05 Engineer builds a Wall. U-05 Engineer lays Concrete. The unstable cave ceiling collapses. Acquired EM Pulse Cannon. Critical hit (Burn: +37). Slug penetrates Wall. EM Pulse Cannon destroyed. Critical hit (Burn: +37). Slug penetrates Wall. Imp. Targeting Computer destroyed. Connecting with Garrison Access... >>Seal Access door sealed. Map ----- +----------------------------------------------------+ | ??????????????????????????###### %[ #??? | | ??????????????????? = = #??? | | ?????????????????????????####### """ """% #??? | | ???????????????????????????????# """ "" #??? | | ???????????????????????????????# """ "" #??? | | ???????????????????????????????# [ #??? | | ???????????????????????????????# = = #??? | | ???????????????????????????????# # #??? | | ???????????????????????????????# * #??? | | ???????????????????????????????# * % # #??? | | ???????????????????????????????# # #??? | | ???????????????????????????????# # # = | | ???????????????????????????????# # +# ## | | ???????????????????????????????# # # | | ???????????????????????????????# # ! # """ | | ???????????????????????????????# # # """ | | ???????????????????????????????# # """ # """ | | ???????????????????????????????# " """ # ? | | ???????????????????????????????# # """ #?? [ | | ???????????????????????????????# g ########?? | | ????????????? ##########+####### #?????????? | | ????????????? g #??????????###? | | ????????????? #?????????????? | | ???????????????? g #?????????????? | | ?????????????????# #### g #?????????????? | | ?????????????????????#"""@ """ #?????????????? | | ?????????????????????#"G """ #?????????????? | | ?????????????????????#""" """ #?????????????? | | ?????????????????????#### """ #?????????????? | | ????????????????????????# #?????????????? | | ????????????????????????# #?????????????? | | ????????????????????????#######+##+#?????????????? | | ?????????????????????????????????? #?????????????? | | ?????????????????????????????????? #?????????????? | | ?????????????????????????????????? ??????????????? | | ?????????????????????????????????? ??????????????? | | ?????????????????????????????????? ??????????????? | | ?????????????????????????????????????????????????? | | ?????????????????????????????????????????????????? | | ?????????????????????????????????????????????????? | | ?????????????????????????????????????????????????? | | ?????????????????????????????????????????????????? | | ?????????????????????????????????????????????????? | | ?????????????????????????????????????????????????? | | ?????????????????????????????????????????????????? | | ?????????????????????????????????????????????????? | | ?????????????????????????????????????????????????? | | ?????????????????????????????????????????????????? | | ?????????????????????????????????????????????????? | | ?????????????????????????????????????????????????? | +----------------------------------------------------+ Best States ------------- Heat Dissipation 31 Energy Generation 12 Energy Capacity 265 Matter Stores 300 Matter Capacity 300 Sight Range 16 Terrain Scan Density 10 Armor Coverage 225 Evasion (%) 50 Targeting Accuracy 6 Recoil Reduction 2 Offensive Hacking 10 Item Schematics ----------------- None Robot Schematics ------------------ None Fabricated ------------ Nothing Alien Tech Used ----------------- None Achievements -------------- None Challenges ------------ None Game ------ Seed MinesnifferNetworkCanceller Manual? 0 Play Time 00:13:58 Cumulative 41.1 hours Start 2024.07.28 @ 16:26:52 End 2024.07.28 @ 16:37:58 Sessions 1 Manual Loads 0 Difficulty Rogue Special Mode None Game No. 42 Rogue 42 Adventurer 0 Explorer 0 Win Type - Total 0 Types 0/0/0/0/0/0/0/0/0 Lore% 31 Gallery% 37 Achievement% 26 Wizard Run 0 Options --------- Layout 1 ASCII 0 Keyboard 1 Movement Numpad Keybinds 0 Fullscreen 1 Font 24/Smallcaps Map View 50x35 Zoom Use 0% Tactical HUD 0 Map Filters NONE Filters NONE Steam 1 RUN: 7b8e355d-52b2-490d-9d11-26195a2e2620